[Event "36th Balaton Open A 2018"]
[Site "Balatonlelle"]
[Date "2018.06.12"]
[Round "1.1"]
[White "Pallagi, Janos"]
[Black "Nagy, Daniel"]
[Result "0-1"]
[ECO "A13"]
[WhiteElo "1967"]
[BlackElo "2312"]
[Annotator "ChessBase"]
[PlyCount "106"]
[EventDate "2018.06.12"]
[EventType "swiss"]
[EventCountry "HUN"]
[SourceTitle "playchess.com"]
[Source "ChessBase"]
[SourceQuality "1"]
[TimeControl "40/5400+30:1800+30"]

1. Nf3 {[%emt 0:00:18]} d5 {[%emt 0:00:37]} 2. c4 {[%emt 0:00:15]} e6 {[%emt 0:00:34]} 3. b3 {[%emt 0:00:23]} c5 {[%emt 0:00:53]} 4. g3 {[%emt 0:00:15]} Nc6 {[%emt 0:00:18]} 5. Bb2 {[%emt 0:01:59]} Nf6 {[%emt 0:00:33]} 6. Bg2 {[%emt 0:00:30]} d4 {[%emt 0:02:49]} 7. O-O {[%emt 0:10:25]} e5 {[%emt 0:03:08]} 8. d3 {[%emt 0:00:52]} Bd6 {[%emt 0:01:02]} 9. Na3 {[%emt 0:08:16]} O-O {[%emt 0:01:51]} 10. Nc2 {[%emt 0:00:42]} h6 {[%emt 0:06:12]} 11. a3 {[%emt 0:04:39]} Re8 {[%emt 0:05:35]} 12. e3 {[%emt 0:09:01]} a5 {[%emt 0:16:34]} 13. exd4 {[%emt 0:02:47]} cxd4 {[%emt 0:00:13]} 14. Re1 {[%emt 0:05:59]} Nd7 {[%emt 0:16:56]} 15. Rb1 {[%emt 0:20:14]} f5 {[%emt 0:10:40]} 16. Bc1 {[%emt 0:05:32]} Nf6 {[%emt 0:03:01]} 17. Nd2 {[%emt 0:05:13]} Bc7 {[%emt 0:05:35]} 18. b4 {[%emt 0:03:52]} axb4 {[%emt 0:00:07]} 19. axb4 {[%emt 0:00:08]} Ne7 {[%emt 0:07:24]} 20. Nb3 {[%emt 0:02:29]} Ng6 {[%emt 0:00:45]} 21. h4 {[%emt 0:01:12]} Rb8 {[%emt 0:02:54]} 22. h5 {[%emt 0:01:48]} Nf8 {[%emt 0:00:23]} 23. b5 {[%emt 0:01:52]} Ne6 {[%emt 0:03:14]} 24. Nb4 {[%emt 0:02:03]} Bd6 {[%emt 0:02:52]} 25. Nd5 {[%emt 0:00:18]} Nc5 {[%emt 0:00:39]} 26. Nxc5 {[%emt 0:00:54]} Bxc5 {[%emt 0:00:04]} 27. Rb2 {[%emt 0:01:37]} Qd6 {[%emt 0:02:48]} 28. Nxf6+ {[%emt 0:00:56]} Qxf6 {[%emt 0:00:15]} 29. Rbe2 {[%emt 0:00:19]} Bd7 {[%emt 0:00:51]} 30. Bd5+ {[%emt 0:01:14]} Kh8 {[%emt 0:00:10]} 31. Kg2 {[%emt 0:00:46]} Bd6 {[%emt 0:01:33]} 32. Rh1 {[%emt 0:02:58]} Be6 {[%emt 0:01:35]} 33. Bxe6 {[%emt 0:00:10]} Rxe6 {[%emt 0:00:03]} 34. Rh4 {[%emt 0:00:35]} Rbe8 {[%emt 0:00:41]} 35. Bb2 {[%emt 0:00:19]} Qf7 {[%emt 0:00:26]} 36. Re1 {[%emt 0:01:35]} Bb4 {[%emt 0:02:00]} 37. Rf1 {[%emt 0:00:44]} Be7 {[%emt 0:00:06]} 38. Rhh1 {[%emt 0:00:14]} Bc5 {[%emt 0:00:36]} 39. Rh4 {[%emt 0:00:09]} e4 {[%emt 0:00:41]} 40. dxe4 {[%emt 0:00:00]} fxe4 {[%emt 0:01:56]} 41. Rf4 {[%emt 0:01:49]} Rf6 {[%emt 0:07:02]} 42. Rxf6 {[%emt 0:01:00]} Qxf6 {[%emt 0:01:06]} 43. Qg4 {[%emt 0:06:57]} Qf7 {[%emt 0:04:27]} 44. Re1 {[%emt 0:19:06]} Rf8 {[%emt 0:07:23]} 45. Qf4 {[%emt 0:02:21]} d3 {[%emt 0:07:49]} 46. Qxf7 {[%emt 0:06:59]} Rxf7 {[%emt 0:00:01]} 47. Rf1 {[%emt 0:00:12]} d2 {[%emt 0:00:05]} 48. f4 {[%emt 0:00:48]} exf3+ {[%emt 0:01:04]} 49. Kh2 {[%emt 0:00:22]} Re7 {[%emt 0:00:39]} 50. Bc3 {[%emt 0:01:22]} Re2+ {[%emt 0:01:37]} 51. Kh3 {[%emt 0:00:01]} f2 {[%emt 0:04:50]} 52. Kg2 {[%emt 0:00:47]} Kg8 {[%emt 0:00:25]} 53. Rd1 {[%emt 0:00:43]} Re1 {[%emt 0:00:22]} 0-1

[Event "36th Balaton Open A 2018"]
[Site "Balatonlelle"]
[Date "2018.06.12"]
[Round "1.2"]
[White "Haszon, David"]
[Black "Tancsa, Tamas"]
[Result "1/2-1/2"]
[ECO "C71"]
[WhiteElo "2246"]
[BlackElo "1965"]
[Annotator "ChessBase"]
[PlyCount "69"]
[EventDate "2018.06.12"]
[EventType "swiss"]
[EventCountry "HUN"]
[SourceTitle "playchess.com"]
[Source "ChessBase"]
[SourceQuality "1"]
[TimeControl "40/5400+30:1800+30"]

1. e4 {[%emt 0:00:05]} e5 {[%emt 0:01:15]} 2. Nf3 {[%emt 0:00:33]} Nc6 {[%emt 0:00:39]} 3. Bb5 {[%emt 0:00:19]} a6 {[%emt 0:00:41]} 4. Ba4 {[%emt 0:00:07]} d6 {[%emt 0:00:55]} 5. d4 {[%emt 0:00:35]} b5 {[%emt 0:00:26]} 6. Bb3 {[%emt 0:00:08]} Nxd4 {[%emt 0:00:21]} 7. Nxd4 {[%emt 0:00:50]} exd4 {[%emt 0:00:13]} 8. c3 {[%emt 0:00:18]} dxc3 {[%emt 0:03:47]} 9. Nxc3 {[%emt 0:03:30]} Nf6 {[%emt 0:05:48]} 10. e5 {[%emt 0:06:40]} dxe5 {[%emt 0:00:51]} 11. Bxf7+ {[%emt 0:00:46]} Ke7 {[%emt 0:02:02]} 12. Qxd8+ {[%emt 0:11:23]} Kxd8 {[%emt 0:00:21]} 13. Bg5 {[%emt 0:00:51]} h6 {[%emt 0:13:29]} 14. Bh4 {[%emt 0:00:49]} Bd6 {[%emt 0:06:04]} 15. O-O-O {[%emt 0:03:20]} Ke7 {[%emt 0:05:49]} 16. Bd5 {[%emt 0:05:46]} Rb8 {[%emt 0:03:13]} 17. Rhe1 {[%emt 0:04:35]} g5 {[%emt 0:06:51]} 18. Bg3 {[%emt 0:05:52]} Nxd5 {[%emt 0:03:24]} 19. Bxe5 {[%emt 0:04:18]} Bxe5 {[%emt 0:03:31]} 20. Rxd5 {[%emt 0:09:06]} Rb6 {[%emt 0:09:52]} 21. Rexe5+ {[%emt 0:13:19]} Re6 {[%emt 0:00:54]} 22. Rc5 {[%emt 0:05:11]} Rxe5 {[%emt 0:01:20]} 23. Rxe5+ {[%emt 0:00:03]} Kd6 {[%emt 0:00:20]} 24. Rd5+ {[%emt 0:00:14]} Kc6 {[%emt 0:00:11]} 25. b4 {[%emt 0:00:54]} Rf8 {[%emt 0:08:45]} 26. Rc5+ {[%emt 0:00:37]} Kb7 {[%emt 0:00:22]} 27. Nd1 {[%emt 0:04:33]} Rf5 {[%emt 0:02:21]} 28. Rc3 {[%emt 0:04:14]} c5 {[%emt 0:03:19]} 29. bxc5 {[%emt 0:01:28]} Kc6 {[%emt 0:01:38]} 30. Kd2 {[%emt 0:05:52]} Rxc5 {[%emt 0:00:42]} 31. Nb2 {[%emt 0:00:22]} Bf5 {[%emt 0:08:23]} 32. f3 {[%emt 0:00:31]} b4 {[%emt 0:02:20]} 33. Rxc5+ {[%emt 0:03:26]} Kxc5 {[%emt 0:00:01]} 34. Nd3+ {[%emt 0:03:48]} Kb5 {[%emt 0:01:41]} 35. g3 {[%emt 0:00:55]} 1/2-1/2

[Event "36th Balaton Open A 2018"]
[Site "Balatonlelle"]
[Date "2018.06.12"]
[Round "1.3"]
[White "Zilahi, Gabor"]
[Black "Terbe, Julianna"]
[Result "1/2-1/2"]
[ECO "D10"]
[WhiteElo "1934"]
[BlackElo "2242"]
[Annotator "ChessBase"]
[PlyCount "88"]
[EventDate "2018.06.12"]
[EventType "swiss"]
[EventCountry "HUN"]
[SourceTitle "playchess.com"]
[Source "ChessBase"]
[SourceQuality "1"]
[TimeControl "40/5400+30:1800+30"]

1. d4 {[%emt 0:00:06]} d5 {[%emt 0:00:36]} 2. e3 {[%emt 0:00:07]} Bf5 {[%emt 0:00:40]} 3. c4 {[%emt 0:00:12]} c6 {[%emt 0:00:04]} 4. Nc3 {[%emt 0:00:07]} e6 {[%emt 0:00:05]} 5. Qb3 {[%emt 0:00:08]} Qc7 {[%emt 0:01:59]} 6. Bd2 {[%emt 0:00:28]} Nd7 {[%emt 0:00:33]} 7. cxd5 {[%emt 0:00:34]} exd5 {[%emt 0:00:09]} 8. Rc1 {[%emt 0:00:11]} Qb6 {[%emt 0:00:52]} 9. Qxb6 {[%emt 0:00:26]} axb6 {[%emt 0:00:14]} 10. Nf3 {[%emt 0:01:37]} Ngf6 {[%emt 0:00:31]} 11. Be2 {[%emt 0:00:23]} Bd6 {[%emt 0:01:09]} 12. Nh4 {[%emt 0:00:32]} Bg6 {[%emt 0:02:54]} 13. Nxg6 {[%emt 0:00:26]} hxg6 {[%emt 0:00:06]} 14. h3 {[%emt 0:00:42]} O-O {[%emt 0:00:38]} 15. O-O {[%emt 0:00:52]} b5 {[%emt 0:00:11]} 16. a3 {[%emt 0:00:34]} Nb6 {[%emt 0:00:24]} 17. Rc2 {[%emt 0:01:29]} Rfe8 {[%emt 0:01:48]} 18. Bd3 {[%emt 0:00:50]} Na4 {[%emt 0:05:43]} 19. Nb1 {[%emt 0:03:02]} Ne4 {[%emt 0:02:09]} 20. Bc1 {[%emt 0:00:38]} Nb6 {[%emt 0:03:29]} 21. b3 {[%emt 0:00:22]} Nd7 {[%emt 0:03:38]} 22. Re1 {[%emt 0:01:14]} Ndf6 {[%emt 0:01:25]} 23. g4 {[%emt 0:05:11]} g5 {[%emt 0:01:43]} 24. f3 {[%emt 0:00:56]} Bg3 {[%emt 0:00:15]} 25. Rf1 {[%emt 0:00:42]} Nd6 {[%emt 0:00:09]} 26. Kg2 {[%emt 0:01:23]} Bh4 {[%emt 0:00:07]} 27. Re2 {[%emt 0:00:54]} Re6 {[%emt 0:02:53]} 28. Nc3 {[%emt 0:00:25]} Rae8 {[%emt 0:01:44]} 29. a4 {[%emt 0:02:04]} bxa4 {[%emt 0:00:32]} 30. Nxa4 {[%emt 0:00:23]} Ra8 {[%emt 0:00:54]} 31. Nc5 {[%emt 0:00:31]} Re7 {[%emt 0:02:47]} 32. Bd2 {[%emt 0:00:49]} Ra2 {[%emt 0:06:14]} 33. Rc1 {[%emt 0:00:53]} Re8 {[%emt 0:03:42]} 34. Na4 {[%emt 0:01:19]} g6 {[%emt 0:12:48]} 35. Bb1 {[%emt 0:01:20]} Rxd2 {[%emt 0:00:04]} 36. Rxd2 {[%emt 0:00:16]} Rxe3 {[%emt 0:00:02]} 37. Nc5 {[%emt 0:01:20]} Nfe8 {[%emt 0:02:38]} 38. Bd3 {[%emt 0:00:54]} Nc7 {[%emt 0:02:29]} 39. Re2 {[%emt 0:00:47]} Rxe2+ {[%emt 0:01:49]} 40. Bxe2 {[%emt 0:00:00]} Ncb5 {[%emt 0:00:30]} 41. Bxb5 {[%emt 0:02:01]} Nxb5 {[%emt 0:00:01]} 42. Rd1 {[%emt 0:01:41]} Nd6 {[%emt 0:00:56]} 43. Ra1 {[%emt 0:01:17]} Nb5 {[%emt 0:00:14]} 44. Rd1 {[%emt 0:00:39]} Nd6 {[%emt 0:00:08]} 1/2-1/2

[Event "36th Balaton Open A 2018"]
[Site "Balatonlelle"]
[Date "2018.06.12"]
[Round "1.4"]
[White "Suta, Andraz"]
[Black "Schmuck, Corentin"]
[Result "1-0"]
[ECO "C02"]
[WhiteElo "2239"]
[BlackElo "1925"]
[Annotator "ChessBase"]
[PlyCount "63"]
[EventDate "2018.06.12"]
[EventType "swiss"]
[EventCountry "HUN"]
[SourceTitle "playchess.com"]
[Source "ChessBase"]
[SourceQuality "1"]
[TimeControl "40/5400+30:1800+30"]

1. e4 {[%emt 0:00:04]} e6 {[%emt 0:00:35]} 2. d4 {[%emt 0:00:19]} d5 {[%emt 0:00:10]} 3. e5 {[%emt 0:01:55]} c5 {[%emt 0:00:09]} 4. c3 {[%emt 0:00:04]} Qb6 {[%emt 0:00:08]} 5. Nf3 {[%emt 0:00:06]} Nc6 {[%emt 0:00:41]} 6. a3 {[%emt 0:00:17]} c4 {[%emt 0:00:10]} 7. Nbd2 {[%emt 0:00:50]} Na5 {[%emt 0:00:08]} 8. g3 {[%emt 0:00:25]} Bd7 {[%emt 0:00:25]} 9. h4 {[%emt 0:00:43]} Ne7 {[%emt 0:03:52]} 10. Bh3 {[%emt 0:03:14]} Qc7 {[%emt 0:02:30]} 11. O-O {[%emt 0:06:22]} Nc8 {[%emt 0:01:38]} 12. Ne1 {[%emt 0:04:28]} Nb6 {[%emt 0:08:42]} 13. Ndf3 {[%emt 0:01:14]} Nb3 {[%emt 0:02:12]} 14. Rb1 {[%emt 0:00:07]} Be7 {[%emt 0:03:55]} 15. Ng2 {[%emt 0:04:44]} O-O-O {[%emt 0:08:41]} 16. Bg5 {[%emt 0:09:05]} f6 {[%emt 0:11:33]} 17. Bf4 {[%emt 0:11:00]} f5 {[%emt 0:06:02]} 18. Bg5 {[%emt 0:01:43]} Ba4 {[%emt 0:08:21]} 19. Nf4 {[%emt 0:02:29]} Qd7 {[%emt 0:00:34]} 20. Qe2 {[%emt 0:05:30]} Rdf8 {[%emt 0:07:21]} 21. g4 {[%emt 0:17:38]} g6 {[%emt 0:01:54]} 22. gxf5 {[%emt 0:00:26]} gxf5 {[%emt 0:00:16]} 23. Kh1 {[%emt 0:02:25]} Kb8 {[%emt 0:01:57]} 24. Rg1 {[%emt 0:01:34]} Nc8 {[%emt 0:02:59]} 25. Rg2 {[%emt 0:01:29]} Na5 {[%emt 0:02:41]} 26. Rbg1 {[%emt 0:01:18]} Nc6 {[%emt 0:00:20]} 27. Bh6 {[%emt 0:01:06]} Rf7 {[%emt 0:00:56]} 28. Rg8 {[%emt 0:06:15]} Rxg8 {[%emt 0:00:10]} 29. Rxg8 {[%emt 0:00:01]} Bd8 {[%emt 0:06:04]} 30. Bg2 {[%emt 0:01:52]} Nb6 {[%emt 0:00:42]} 31. Ng5 {[%emt 0:01:43]} Re7 {[%emt 0:00:12]} 32. Qh5 {[%emt 0:00:34]} 1-0

[Event "36th Balaton Open A 2018"]
[Site "Balatonlelle"]
[Date "2018.06.12"]
[Round "1.5"]
[White "Radics, Laszlo Dr"]
[Black "Kincs, Imre"]
[Result "0-1"]
[ECO "B11"]
[WhiteElo "1909"]
[BlackElo "2210"]
[Annotator "ChessBase"]
[PlyCount "56"]
[EventDate "2018.06.12"]
[EventType "swiss"]
[EventCountry "HUN"]
[SourceTitle "playchess.com"]
[Source "ChessBase"]
[SourceQuality "1"]
[TimeControl "40/5400+30:1800+30"]

1. e4 {[%emt 0:00:08]} c6 {[%emt 0:00:35]} 2. Nc3 {[%emt 0:00:39]} d5 {[%emt 0:00:04]} 3. Nf3 {[%emt 0:00:44]} dxe4 {[%emt 0:01:22]} 4. Nxe4 {[%emt 0:00:18]} Bf5 {[%emt 0:00:07]} 5. Ng3 {[%emt 0:00:36]} Bg6 {[%emt 0:00:04]} 6. h4 {[%emt 0:01:44]} h6 {[%emt 0:00:13]} 7. Ne5 {[%emt 0:02:19]} Bh7 {[%emt 0:00:11]} 8. Qh5 {[%emt 0:02:04]} g6 {[%emt 0:00:52]} 9. Qf3 {[%emt 0:00:30]} Nf6 {[%emt 0:00:07]} 10. Qb3 {[%emt 0:01:32]} Qd5 {[%emt 0:00:50]} 11. Qxb7 {[%emt 0:00:47]} Qxe5+ {[%emt 0:00:19]} 12. Be2 {[%emt 0:00:27]} e6 {[%emt 0:00:21]} 13. Qc8+ {[%emt 0:05:53]} Ke7 {[%emt 0:00:12]} 14. Qb7+ {[%emt 0:00:07]} Nfd7 {[%emt 0:00:06]} 15. Qxa8 {[%emt 0:03:24]} Qc7 {[%emt 0:00:37]} 16. d3 {[%emt 0:03:20]} Bg7 {[%emt 0:00:27]} 17. Be3 {[%emt 0:00:49]} Bxb2 {[%emt 0:05:24]} 18. Rb1 {[%emt 0:00:35]} Qa5+ {[%emt 0:09:00]} 19. Kf1 {[%emt 0:02:41]} Qxa2 {[%emt 0:00:34]} 20. Rd1 {[%emt 0:00:33]} a5 {[%emt 0:03:33]} 21. Qa7 {[%emt 0:03:19]} Be5 {[%emt 0:02:08]} 22. Bc5+ {[%emt 0:03:50]} Kf6 {[%emt 0:00:58]} 23. Ne4+ {[%emt 0:03:41]} Kg7 {[%emt 0:00:11]} 24. d4 {[%emt 0:00:43]} Bf6 {[%emt 0:12:55]} 25. c4 {[%emt 0:08:57]} Bd8 {[%emt 0:04:34]} 26. Rh3 {[%emt 0:02:52]} g5 {[%emt 0:00:40]} 27. Nd6 {[%emt 0:00:46]} gxh4 {[%emt 0:03:58]} 28. Rxh4 {[%emt 0:00:58]} Bxh4 {[%emt 0:00:10]} 0-1

[Event "36th Balaton Open A 2018"]
[Site "Balatonlelle"]
[Date "2018.06.12"]
[Round "1.6"]
[White "Ronce, Nathan"]
[Black "Bellan, Istvan"]
[Result "1-0"]
[ECO "B07"]
[WhiteElo "2210"]
[BlackElo "1875"]
[Annotator "ChessBase"]
[PlyCount "75"]
[EventDate "2018.06.12"]
[EventType "swiss"]
[EventCountry "HUN"]
[SourceTitle "playchess.com"]
[Source "ChessBase"]
[SourceQuality "1"]
[TimeControl "40/5400+30:1800+30"]

1. e4 {[%emt 0:00:07]} d6 {[%emt 0:00:51]} 2. d4 {[%emt 0:00:59]} Nf6 {[%emt 0:00:16]} 3. Nc3 {[%emt 0:00:06]} g6 {[%emt 0:00:14]} 4. h3 {[%emt 0:04:24]} Bg7 {[%emt 0:01:55]} 5. g3 {[%emt 0:01:56]} O-O {[%emt 0:05:54]} 6. Bg2 {[%emt 0:01:03]} Nc6 {[%emt 0:01:59]} 7. Nge2 {[%emt 0:00:22]} e5 {[%emt 0:01:33]} 8. Be3 {[%emt 0:00:41]} Nd7 {[%emt 0:01:55]} 9. O-O {[%emt 0:01:41]} Ne7 {[%emt 0:06:50]} 10. Qd2 {[%emt 0:09:14]} exd4 {[%emt 0:03:14]} 11. Bxd4 {[%emt 0:07:44]} Ne5 {[%emt 0:00:56]} 12. f4 {[%emt 0:03:30]} N5c6 {[%emt 0:05:46]} 13. Bxg7 {[%emt 0:00:23]} Kxg7 {[%emt 0:00:08]} 14. Nd5 {[%emt 0:02:59]} f6 {[%emt 0:05:02]} 15. Qc3 {[%emt 0:02:43]} Bd7 {[%emt 0:02:05]} 16. Rad1 {[%emt 0:00:34]} a5 {[%emt 0:06:25]} 17. g4 {[%emt 0:02:47]} Nxd5 {[%emt 0:03:30]} 18. exd5 {[%emt 0:00:32]} Ne7 {[%emt 0:00:25]} 19. Nd4 {[%emt 0:01:46]} b5 {[%emt 0:07:11]} 20. a3 {[%emt 0:04:48]} Qb8 {[%emt 0:01:12]} 21. Rfe1 {[%emt 0:01:08]} Ng8 {[%emt 0:00:41]} 22. b4 {[%emt 0:02:00]} axb4 {[%emt 0:00:15]} 23. axb4 {[%emt 0:00:06]} Qb6 {[%emt 0:00:24]} 24. Kh1 {[%emt 0:00:42]} Ra4 {[%emt 0:01:52]} 25. Re2 {[%emt 0:03:25]} Qa7 {[%emt 0:03:12]} 26. Rde1 {[%emt 0:04:23]} Ra3 {[%emt 0:00:37]} 27. Nb3 {[%emt 0:00:06]} Rf7 {[%emt 0:02:36]} 28. Bf3 {[%emt 0:01:45]} Qb7 {[%emt 0:06:43]} 29. Kg2 {[%emt 0:00:58]} Qc8 {[%emt 0:00:58]} 30. Qb2 {[%emt 0:01:16]} Ra4 {[%emt 0:01:11]} 31. Nd4 {[%emt 0:00:47]} Kf8 {[%emt 0:02:21]} 32. Qc3 {[%emt 0:03:13]} Rg7 {[%emt 0:01:56]} 33. Ne6+ {[%emt 0:03:53]} Bxe6 {[%emt 0:00:17]} 34. Rxe6 {[%emt 0:00:04]} Qd7 {[%emt 0:07:13]} 35. g5 {[%emt 0:08:49]} f5 {[%emt 0:03:59]} 36. Re8+ {[%emt 0:01:25]} Kf7 {[%emt 0:02:16]} 37. Rb8 {[%emt 0:01:12]} Ra6 {[%emt 0:02:36]} 38. Ree8 {[%emt 0:00:14]} 1-0

[Event "36th Balaton Open A 2018"]
[Site "Balatonlelle"]
[Date "2018.06.12"]
[Round "1.7"]
[White "Kaibinger, Karoly"]
[Black "Forgacs, Jozsef"]
[Result "0-1"]
[ECO "B06"]
[WhiteElo "1804"]
[BlackElo "2199"]
[Annotator "ChessBase"]
[PlyCount "104"]
[EventDate "2018.06.12"]
[EventType "swiss"]
[EventCountry "HUN"]
[SourceTitle "playchess.com"]
[Source "ChessBase"]
[SourceQuality "1"]
[TimeControl "40/5400+30:1800+30"]

1. e4 {[%emt 0:00:07]} g6 {[%emt 0:00:54]} 2. d4 {[%emt 0:00:20]} d6 {[%emt 0:00:09]} 3. Nf3 {[%emt 0:00:17]} Bg7 {[%emt 0:00:06]} 4. c3 {[%emt 0:00:53]} Nd7 {[%emt 0:00:20]} 5. Bc4 {[%emt 0:01:43]} e6 {[%emt 0:00:56]} 6. O-O {[%emt 0:01:08]} Ne7 {[%emt 0:00:30]} 7. Be3 {[%emt 0:04:28]} d5 {[%emt 0:06:52]} 8. Bd3 {[%emt 0:02:28]} dxe4 {[%emt 0:00:24]} 9. Bxe4 {[%emt 0:00:21]} O-O {[%emt 0:06:14]} 10. Qd2 {[%emt 0:02:02]} Nf6 {[%emt 0:00:16]} 11. Bc2 {[%emt 0:01:04]} b6 {[%emt 0:08:40]} 12. Bh6 {[%emt 0:01:26]} Bb7 {[%emt 0:00:12]} 13. Bxg7 {[%emt 0:00:30]} Kxg7 {[%emt 0:00:07]} 14. Ne5 {[%emt 0:00:30]} Qd5 {[%emt 0:02:49]} 15. f3 {[%emt 0:02:27]} c5 {[%emt 0:02:20]} 16. Bb3 {[%emt 0:03:23]} Qd6 {[%emt 0:00:45]} 17. Na3 {[%emt 0:00:41]} cxd4 {[%emt 0:01:05]} 18. Nac4 {[%emt 0:00:16]} Qd8 {[%emt 0:00:19]} 19. cxd4 {[%emt 0:02:56]} Nf5 {[%emt 0:02:36]} 20. Rfd1 {[%emt 0:02:00]} Rc8 {[%emt 0:03:30]} 21. Ne3 {[%emt 0:03:12]} Ne7 {[%emt 0:02:43]} 22. Qf2 {[%emt 0:02:23]} Nfd5 {[%emt 0:01:15]} 23. N3g4 {[%emt 0:02:40]} Nf5 {[%emt 0:02:35]} 24. Bc2 {[%emt 0:02:48]} f6 {[%emt 0:11:06]} 25. Qe2 {[%emt 0:00:31]} Rxc2 {[%emt 0:03:47]} 26. Qxc2 {[%emt 0:01:01]} fxe5 {[%emt 0:00:16]} 27. Qe4 {[%emt 0:04:17]} h5 {[%emt 0:05:48]} 28. Nxe5 {[%emt 0:02:49]} Qg5 {[%emt 0:07:30]} 29. Nd7 {[%emt 0:10:14]} Nfe3 {[%emt 0:08:11]} 30. Rd2 {[%emt 0:03:11]} Rf7 {[%emt 0:05:35]} 31. Qe5+ {[%emt 0:01:40]} Qxe5 {[%emt 0:00:08]} 32. Nxe5 {[%emt 0:00:07]} Rc7 {[%emt 0:00:15]} 33. Re1 {[%emt 0:00:59]} Kf6 {[%emt 0:02:26]} 34. Kf2 {[%emt 0:00:18]} Nc4 {[%emt 0:05:38]} 35. Rde2 {[%emt 0:05:43]} Nxe5 {[%emt 0:00:26]} 36. dxe5+ {[%emt 0:01:07]} Kf5 {[%emt 0:00:32]} 37. h4 {[%emt 0:10:17]} Nb4 {[%emt 0:05:09]} 38. g4+ {[%emt 0:02:00]} hxg4 {[%emt 0:00:13]} 39. fxg4+ {[%emt 0:00:07]} Kf4 {[%emt 0:03:26]} 40. Rd1 {[%emt 0:00:00]} Nc6 {[%emt 0:03:12]} 41. Rd3 {[%emt 0:16:22]} Kxg4 {[%emt 0:00:47]} 42. Rg3+ {[%emt 0:08:49]} Kh5 {[%emt 0:00:54]} 43. Rg5+ {[%emt 0:00:10]} Kh6 {[%emt 0:00:06]} 44. Rd2 {[%emt 0:00:14]} Ne7 {[%emt 0:07:10]} 45. Rd8 {[%emt 0:05:01]} Be4 {[%emt 0:01:51]} 46. Ke3 {[%emt 0:02:31]} Bf5 {[%emt 0:00:28]} 47. Rh8+ {[%emt 0:01:55]} Kg7 {[%emt 0:00:09]} 48. Ra8 {[%emt 0:00:14]} Nd5+ {[%emt 0:01:53]} 49. Kf3 {[%emt 0:00:22]} a5 {[%emt 0:04:07]} 50. Rb8 {[%emt 0:01:43]} Rc4 {[%emt 0:02:33]} 51. h5 {[%emt 0:01:38]} Kh6 {[%emt 0:02:41]} 52. Rg1 {[%emt 0:00:12]} Rf4+ {[%emt 0:01:09]} 0-1

[Event "36th Balaton Open A 2018"]
[Site "Balatonlelle"]
[Date "2018.06.12"]
[Round "1.8"]
[White "Nagy, Ervin Dr"]
[Black "Rabovszky, Gyorgy"]
[Result "1/2-1/2"]
[ECO "B32"]
[WhiteElo "2172"]
[BlackElo "1789"]
[Annotator "ChessBase"]
[PlyCount "58"]
[EventDate "2018.06.12"]
[EventType "swiss"]
[EventCountry "HUN"]
[SourceTitle "playchess.com"]
[Source "ChessBase"]
[SourceQuality "1"]
[TimeControl "40/5400+30:1800+30"]

1. e4 {[%emt 0:00:16]} c5 {[%emt 0:03:36]} 2. Nf3 {[%emt 0:00:23]} Nc6 {[%emt 0:00:06]} 3. d4 {[%emt 0:00:16]} cxd4 {[%emt 0:00:07]} 4. Nxd4 {[%emt 0:00:08]} e5 {[%emt 0:00:05]} 5. Nb5 {[%emt 0:00:18]} a6 {[%emt 0:00:06]} 6. Nd6+ {[%emt 0:00:19]} Bxd6 {[%emt 0:00:07]} 7. Qxd6 {[%emt 0:00:09]} Qe7 {[%emt 0:00:10]} 8. Qd2 {[%emt 0:10:11]} Nf6 {[%emt 0:01:19]} 9. Nc3 {[%emt 0:00:15]} b5 {[%emt 0:02:54]} 10. Bd3 {[%emt 0:09:46]} Bb7 {[%emt 0:02:32]} 11. O-O {[%emt 0:01:42]} Nb4 {[%emt 0:02:25]} 12. Re1 {[%emt 0:05:04]} Nxd3 {[%emt 0:01:12]} 13. Qxd3 {[%emt 0:00:59]} O-O {[%emt 0:02:57]} 14. Bg5 {[%emt 0:01:36]} h6 {[%emt 0:04:34]} 15. Bh4 {[%emt 0:00:33]} g5 {[%emt 0:00:46]} 16. Bg3 {[%emt 0:00:19]} Rac8 {[%emt 0:04:27]} 17. Rad1 {[%emt 0:13:05]} b4 {[%emt 0:06:09]} 18. Nd5 {[%emt 0:03:26]} Nxd5 {[%emt 0:03:05]} 19. exd5 {[%emt 0:04:13]} d6 {[%emt 0:00:53]} 20. f4 {[%emt 0:02:34]} gxf4 {[%emt 0:05:16]} 21. Bxf4 {[%emt 0:00:55]} Qf6 {[%emt 0:02:29]} 22. Bd2 {[%emt 0:01:50]} Qg6 {[%emt 0:14:54]} 23. Qxg6+ {[%emt 0:19:08]} fxg6 {[%emt 0:00:35]} 24. Bxh6 {[%emt 0:00:16]} Rf7 {[%emt 0:00:40]} 25. Rd2 {[%emt 0:01:06]} Rc5 {[%emt 0:03:44]} 26. Be3 {[%emt 0:04:44]} Ra5 {[%emt 0:03:40]} 27. c3 {[%emt 0:02:29]} bxc3 {[%emt 0:00:47]} 28. bxc3 {[%emt 0:00:08]} Rxd5 {[%emt 0:01:53]} 29. c4 {[%emt 0:04:47]} Rxd2 {[%emt 0:01:06]} 1/2-1/2

[Event "36th Balaton Open A 2018"]
[Site "Balatonlelle"]
[Date "2018.06.12"]
[Round "1.9"]
[White "Bernath, Bence"]
[Black "Boguszlavszkij, Jevgenyij"]
[Result "0-1"]
[ECO "B12"]
[WhiteElo "1758"]
[BlackElo "2170"]
[Annotator "ChessBase"]
[PlyCount "76"]
[EventDate "2018.06.12"]
[EventType "swiss"]
[EventCountry "HUN"]
[SourceTitle "playchess.com"]
[Source "ChessBase"]
[SourceQuality "1"]
[TimeControl "40/5400+30:1800+30"]

1. e4 {[%emt 0:00:04]} g6 {[%emt 0:27:13]} 2. d4 {[%emt 0:01:29]} c6 {[%emt 0:00:23]} 3. f4 {[%emt 0:00:32]} d5 {[%emt 0:00:07]} 4. e5 {[%emt 0:00:32]} h5 {[%emt 0:00:07]} 5. Nf3 {[%emt 0:01:17]} Nh6 {[%emt 0:00:13]} 6. Be3 {[%emt 0:00:41]} Bg4 {[%emt 0:01:00]} 7. h3 {[%emt 0:00:57]} Bxf3 {[%emt 0:00:24]} 8. Qxf3 {[%emt 0:01:08]} e6 {[%emt 0:01:16]} 9. Bd3 {[%emt 0:02:59]} Na6 {[%emt 0:01:11]} 10. c3 {[%emt 0:02:23]} Qb6 {[%emt 0:00:13]} 11. Qe2 {[%emt 0:01:46]} Nf5 {[%emt 0:03:18]} 12. Bf2 {[%emt 0:00:10]} c5 {[%emt 0:03:18]} 13. Bxa6 {[%emt 0:03:34]} bxa6 {[%emt 0:00:18]} 14. dxc5 {[%emt 0:00:59]} Bxc5 {[%emt 0:00:21]} 15. Bxc5 {[%emt 0:04:24]} Qxc5 {[%emt 0:00:08]} 16. Qf2 {[%emt 0:00:57]} Qe3+ {[%emt 0:03:14]} 17. Qxe3 {[%emt 0:01:45]} Nxe3 {[%emt 0:01:49]} 18. Kd2 {[%emt 0:00:24]} Nxg2 {[%emt 0:00:18]} 19. Rf1 {[%emt 0:00:21]} Ke7 {[%emt 0:01:54]} 20. Na3 {[%emt 0:00:45]} Rab8 {[%emt 0:04:11]} 21. b3 {[%emt 0:00:58]} Rhc8 {[%emt 0:00:50]} 22. Nc2 {[%emt 0:00:46]} Nh4 {[%emt 0:03:33]} 23. Nb4 {[%emt 0:01:24]} Nf5 {[%emt 0:01:37]} 24. Nxa6 {[%emt 0:02:03]} Rb6 {[%emt 0:00:17]} 25. Nb4 {[%emt 0:00:08]} Ng3 {[%emt 0:02:47]} 26. Rfc1 {[%emt 0:01:44]} Ne4+ {[%emt 0:01:31]} 27. Kd3 {[%emt 0:01:10]} a5 {[%emt 0:00:24]} 28. Nc2 {[%emt 0:05:29]} Rxc3+ {[%emt 0:00:20]} 29. Ke2 {[%emt 0:00:19]} Rbc6 {[%emt 0:01:05]} 30. Kd1 {[%emt 0:00:17]} Rd3+ {[%emt 0:01:07]} 31. Ke1 {[%emt 0:00:10]} Rxh3 {[%emt 0:00:20]} 32. Kd1 {[%emt 0:00:22]} Rh1+ {[%emt 0:00:44]} 33. Ne1 {[%emt 0:00:15]} Nc3+ {[%emt 0:02:06]} 34. Kd2 {[%emt 0:00:42]} Rh2+ {[%emt 0:00:24]} 35. Kd3 {[%emt 0:00:27]} Rh3+ {[%emt 0:00:11]} 36. Kd2 {[%emt 0:00:20]} d4 {[%emt 0:00:46]} 37. Nd3 {[%emt 0:01:13]} Ne4+ {[%emt 0:01:46]} 38. Kd1 {[%emt 0:00:07]} Rxd3+ {[%emt 0:00:19]} 0-1